fUST/lending_fUST_20251030
["ID","MTS","AMOUNT","RATE_DAILY","PERIOD"]
[392669178,1761804635276,-300.0,0.00031514,3]
[392669179,1761804635287,-420.0,0.00031514,3]
[392669180,1761804635296,-300.0,0.00031514,3]
[392669181,1761804635307,-420.0,0.00031514,2]
[392669182,1761804635317,-500.0,0.00031516,5]
[392669183,1761804635327,-500.0,0.00031542,4]
[392669184,1761804635336,-3719.04285168,0.00031571,2]
[392669185,1761804635347,-268.07623625,0.00031581,2]
[392669186,1761804635357,-500.0,0.00031816,4]
[392669187,1761804635370,-183.86541946,0.000319,120]
[392669188,1761804635380,-194.30010957,0.000319,120]
[392669189,1761804635391,-244.57291307,0.00031985,2]
[392669190,1761804635401,-3972.64241972,0.00032036,2]
[392669191,1761804635411,-500.0,0.0003209,4]
[392669192,1761804635422,-500.0,0.00032101,2]
[392669193,1761804635432,-1680.0,0.00032199,3]
[392669194,1761804635444,-500.0,0.00032364,4]
[392669195,1761804635454,-219190.58793563,0.00032394,7]
[392669196,1761804635471,-341.92604415,0.00032394,7]
[392669197,1761804635540,-69568.64593859,0.00032394,7]
[392669198,1761804635685,-1410.72508389,0.00032394,7]
[392669218,1761804637866,-500.0,0.00029897,2]
[392669219,1761804637876,-262.98972031,0.00029897,2]
[392669220,1761804637887,-237.01027969,0.00029897,2]
[392669221,1761804637896,-500.0,0.00029897,2]
[392669222,1761804637906,-54.14302939,0.00029897,2]
[392669223,1761804637981,-248.76313045,0.00029897,2]
[392669224,1761804637990,-500.0,0.00029897,2]
[392669225,1761804637999,-616.93797263,0.00029897,2]
[392669226,1761804638008,-500.0,0.00029897,2]
[392669227,1761804638017,-500.0,0.00029897,2]
[392669228,1761804638026,-500.0,0.00029897,2]
[392669229,1761804638036,-500.0,0.00029897,2]
[392669230,1761804638046,-500.0,0.00029897,2]
[392669231,1761804638055,-500.0,0.00029899,4]
[392669232,1761804638064,-500.0,0.00029899,4]
[392669233,1761804638074,-500.0,0.00029899,4]
[392669234,1761804638084,-500.0,0.00029968,4]
[392669235,1761804638093,-500.0,0.00030785,4]
[392669236,1761804638102,-151.0,0.00031047,2]
[392669237,1761804638112,-151.0,0.00031047,2]
[392669238,1761804638122,-151.0,0.00031047,2]
[392669239,1761804638131,-151.0,0.00031047,2]
[392669240,1761804638140,-412.0,0.00031194,2]
[392669241,1761804638149,-500.0,0.00032035,4]
[392669242,1761804638159,-6509.40098542,0.00032394,7]
[392669243,1761804638171,-5995.51419188,0.00032394,7]
[392669244,1761804638182,-534.94906441,0.00032394,7]
[392669245,1761804638194,-1581.13797745,0.00032394,7]
[392669246,1761804638206,-294.54076015,0.00032394,7]
[392669247,1761804638218,-910.43206982,0.00032394,7]
[392669258,1761804640111,-151.0,0.00031047,2]
[392669259,1761804640121,-151.0,0.00031047,2]
[392669260,1761804640131,-151.0,0.00031047,2]
[392669261,1761804640141,-893.19,0.00032384,10]
[392669262,1761804640150,-24581.75999997,0.00032394,7]
[392669270,1761804643004,-151.0,0.00031047,2]
[392669271,1761804643013,-151.0,0.00031047,2]
[392669272,1761804643023,-151.0,0.00031047,2]
[392669273,1761804643032,-68017.7742169,0.00032394,7]
[392669274,1761804643117,-151.0,0.00031047,2]
[392669275,1761804643126,-74046.60502184,0.00032394,7]
[392669292,1761804645957,-2858.02,0.00029897,2]
[392669293,1761804645966,-2858.02,0.00029897,2]
[392669294,1761804645976,-2858.02,0.00029897,2]
[392669295,1761804645986,-2858.02,0.00029897,2]
[392669296,1761804645995,-500.0,0.00029898,4]
[392669297,1761804646004,-151.0,0.00031047,2]
[392669298,1761804646014,-151.0,0.00031047,2]
[392669299,1761804646023,-151.0,0.00031047,2]
[392669300,1761804646033,-151.0,0.00031047,2]
[392669301,1761804646042,-131816.25005603,0.00032394,7]
[392669302,1761804646067,-2858.02,0.00029897,2]
[392669303,1761804646078,-350036.1191862,0.00032394,7]
[392669304,1761804646089,-1497.25668317,0.00032394,7]
[392669305,1761804646127,-422.748628,0.00032394,7]
[392669306,1761804646138,-4530.99280629,0.00032394,7]
[392669307,1761804646149,-340.66259635,0.00032394,7]
[392669308,1761804646161,-623.89357415,0.00032394,7]
[392669309,1761804646174,-21507.67372874,0.00032394,7]
[392669318,1761804904801,438.166318,0.00013699,2]
[392669319,1761804905002,438.166318,0.00020187,2]
[392669335,1761805439508,-205.8579133,0.00025506,2]
[392669336,1761805439524,-88.2841734,0.00025506,2]
[392669337,1761805439533,-205.8579133,0.00025892,2]
[392669338,1761805553131,-317.3124833,0.00025484,2]
[392669339,1761805553150,-748.92668497,0.00025763,16]
[392669340,1761805584662,4526.2499834,0.00025177,2]
[392669359,1761805667445,2838.77209198,0.00018,2]
[392669360,1761805667474,10000.01,0.00018,2]
[392669361,1761805667503,10000.01,0.00018,2]
[392669362,1761805667530,10000.01,0.00018,2]
[392669363,1761805667558,10000.01,0.00018,2]
[392669364,1761805667587,6868.10299717,0.00018,2]
[392669365,1761805671428,9655.93331607,0.00018,2]
[392669366,1761805701068,300.0,0.000252,2]
[392669367,1761805712863,44.07668393,0.00025205,2]
[392669368,1761805712886,1468.55246036,0.00025205,2]
[392669369,1761805715185,10000.01,0.00018,2]
[392669370,1761805715207,10000.01,0.00018,2]
[392669371,1761805715230,5258.86421885,0.00018,2]
[392669372,1761805742422,10000.01,0.00025,2]
[392669373,1761805742446,5257.99,0.00025,2]
[392669374,1761805823753,169.48545597,0.00025079,14]
[392669413,1761805832129,-174.75342315,0.00025791,2]
[392669415,1761805832138,-200.0,0.00025791,2]
[392669417,1761805832148,-300.0,0.00025891,2]
[392669419,1761805832157,-1200.0,0.00025891,2]
[392669421,1761805832167,-961.90275788,0.00025892,2]
[392669428,1761805832221,-1870.89771822,0.00025892,2]
[392669430,1761805832230,-1183.450914,0.00025892,2]
[392669432,1761805832240,-300.0,0.00025894,2]
[392669434,1761805832249,-300.0,0.00025894,2]
[392669436,1761805832258,-300.0,0.00025895,2]
[392669438,1761805832268,-300.0,0.00025895,2]
[392669441,1761805832278,-50000.0,0.00025896,2]
[392669444,1761805832287,-1200.0,0.00025896,2]
[392669447,1761805832296,-8252.5190365,0.00025899,2]
[392669450,1761805832306,-340.93636452,0.00026411,2]
[392669452,1761805832315,-174.75342315,0.00026576,2]
[392669454,1761805832325,-826.56,0.00026652,10]
[392669456,1761805832334,-688.8,0.00026652,10]
[392669458,1761805832343,-160.0,0.00026659,2]
[392669460,1761805832352,-244.8645556,0.00026662,2]
[392669462,1761805832362,-500.0,0.00026662,2]
[392669464,1761805832373,-500.0,0.00026662,2]
[392669466,1761805832383,-500.0,0.00026662,2]
[392669468,1761805832394,-500.0,0.00026662,2]
[392669470,1761805832404,-500.0,0.00026662,2]
[392669472,1761805832414,-500.0,0.00026662,2]
[392669473,1761805832426,-500.0,0.00026662,2]
[392669475,1761805832435,-500.0,0.00026662,2]
[392669477,1761805832445,-500.0,0.00026662,2]
[392669479,1761805832455,-500.0,0.00026662,2]
[392669481,1761805832464,-500.0,0.00026662,2]
[392669483,1761805832474,-500.0,0.00026662,2]
[392669485,1761805832483,-500.0,0.00026662,2]
[392669487,1761805832493,-500.0,0.00026662,2]
[392669489,1761805832502,-500.0,0.00026662,2]
[392669491,1761805832511,-500.0,0.00026662,2]
[392669493,1761805832520,-500.0,0.00026662,2]
[392669495,1761805832530,-385.8779642,0.00026662,2]
[392669497,1761805832539,-500.0,0.00026662,2]
[392669499,1761805832548,-500.0,0.00026662,2]
[392669501,1761805832558,-500.0,0.00026662,2]
[392669515,1761805832689,-418.43537556,0.00026662,2]
[392669517,1761805832700,-500.0,0.00026662,2]
[392669519,1761805832710,-500.0,0.00026662,2]
[392669521,1761805832719,-500.0,0.00026662,2]
[392669524,1761805832729,-500.0,0.00026662,2]
[392669526,1761805832739,-500.0,0.00026662,2]
[392669528,1761805832750,-593.03872972,0.00026662,2]
[392669530,1761805832760,-500.0,0.00026662,2]
[392669531,1761805832770,-500.0,0.00026662,2]
[392669534,1761805832780,-500.0,0.00026662,2]
[392669536,1761805832790,-500.0,0.00026662,2]
[392669538,1761805832800,-500.0,0.00026662,2]
[392669540,1761805832810,-500.0,0.00026662,2]
[392669542,1761805832820,-500.0,0.00026662,2]
[392669544,1761805832830,-193.29843793,0.00026662,2]
[392669546,1761805832840,-500.0,0.00026662,2]
[392669548,1761805832850,-500.0,0.00026662,2]
[392669550,1761805832862,-500.0,0.00026662,2]
[392669552,1761805832873,-500.0,0.00026662,2]
[392669554,1761805832883,-500.0,0.00026662,2]
[392669556,1761805832893,-500.0,0.00026662,2]
[392669558,1761805832903,-500.0,0.00026662,2]
[392669560,1761805832912,-500.0,0.00026662,2]
[392669562,1761805832922,-500.0,0.00026662,2]
[392669563,1761805832932,-500.0,0.00026662,2]
[392669564,1761805832942,-500.0,0.00026662,2]
[392669565,1761805832952,-500.0,0.00026662,2]
[392669566,1761805832966,-500.0,0.00026662,2]
[392669568,1761805832976,-500.0,0.00026662,2]
[392669570,1761805832985,-500.0,0.00026662,2]
[392669572,1761805832995,-500.0,0.00026662,2]
[392669574,1761805833006,-569.25246799,0.00026662,2]
[392669575,1761805833015,-602.37141832,0.00026662,2]
[392669577,1761805833024,-500.0,0.00026662,2]
[392669578,1761805833036,-500.0,0.00026662,2]
[392669579,1761805833045,-500.0,0.00026662,2]
[392669580,1761805833054,-500.0,0.00026662,2]
[392669581,1761805833064,-500.0,0.00026662,2]
[392669582,1761805833073,-500.0,0.00026662,2]
[392669583,1761805833082,-500.0,0.00026662,2]
[392669584,1761805833091,-500.0,0.00026662,2]
[392669585,1761805833100,-238.26715287,0.00026662,2]
[392669586,1761805833109,-323.71906488,0.00026662,2]
[392669587,1761805833118,-500.0,0.00026662,2]
[392669588,1761805833128,-500.0,0.00026662,2]
[392669589,1761805833137,-500.0,0.00026662,2]
[392669590,1761805833147,-500.0,0.00026662,2]
[392669591,1761805833156,-500.0,0.00026662,2]
[392669592,1761805833165,-500.0,0.00026662,2]
[392669593,1761805833174,-500.0,0.00026662,2]
[392669594,1761805833183,-500.0,0.00026662,2]
[392669595,1761805833192,-500.0,0.00026662,2]
[392669596,1761805833202,-500.0,0.00026662,2]
[392669597,1761805833212,-500.0,0.00026662,2]
[392669598,1761805833222,-500.0,0.00026662,2]
[392669599,1761805833233,-500.0,0.00026662,2]
[392669600,1761805833243,-500.0,0.00026662,2]
[392669601,1761805833253,-500.0,0.00026662,2]
[392669602,1761805833263,-500.0,0.00026662,2]
[392669603,1761805833273,-500.0,0.00026662,2]
[392669604,1761805833283,-500.0,0.00026662,2]
[392669605,1761805833294,-500.0,0.00026662,2]
[392669606,1761805833304,-500.0,0.00026662,2]
[392669607,1761805833314,-500.0,0.00026662,2]
[392669608,1761805833326,-500.0,0.00026662,2]
[392669609,1761805833337,-500.0,0.00026662,2]
[392669610,1761805833347,-500.0,0.00026662,2]
[392669611,1761805833358,-500.0,0.00026662,2]
[392669612,1761805833369,-500.0,0.00026662,2]
[392669613,1761805833380,-500.0,0.00026662,2]
[392669614,1761805833390,-500.0,0.00026662,2]
[392669615,1761805833400,-500.0,0.00026662,2]
[392669616,1761805833410,-499.99999999,0.00026662,2]
[392669617,1761805833420,-500.0,0.00026662,2]
[392669618,1761805833430,-255.13544439,0.00026662,2]
[392669619,1761805833440,-628.49474452,0.00026662,2]
[392669620,1761805833451,-500.0,0.00026662,2]
[392669621,1761805833461,-500.0,0.00026662,2]
[392669622,1761805833471,-500.0,0.00026662,2]
[392669623,1761805833481,-500.0,0.00026662,2]
[392669624,1761805833491,-500.0,0.00026662,2]
[392669625,1761805833501,-300.0,0.00026662,2]
[392669626,1761805833511,-153.98644047,0.00026662,2]
[392669627,1761805833521,-500.0,0.00026662,2]
[392669628,1761805833531,-386.32009561,0.00026662,2]
[392669629,1761805833541,-500.0,0.00026662,2]
[392669630,1761805833551,-594.77743005,0.00026662,2]
[392669631,1761805833560,-211.35203969,0.00026662,2]
[392669632,1761805833570,-631.05200448,0.00026662,2]
[392669633,1761805833580,-500.96520604,0.00026673,2]
[392669634,1761805833589,-501.15899863,0.00026673,2]
[392669635,1761805833599,-438.166318,0.00026676,2]
[392669636,1761805833609,-3357.39038285,0.00026946,2]
[392669637,1761805833619,-16037.0751347,0.00026956,2]
[392669638,1761805833628,-500.0,0.00027397,2]
[392669639,1761805833639,-374.4287303,0.00027484,2]
[392669640,1761805833649,-587.04848159,0.00027506,4]
[392669641,1761805833659,-631.51,0.00027506,2]
[392669642,1761805833667,-631.51,0.00027506,2]
[392669643,1761805833677,-631.51,0.00027506,2]
[392669644,1761805833687,-500.0,0.00027671,4]
[392669645,1761805833697,-500.0,0.00027945,4]
[392669646,1761805833707,-420.0,0.00028023,2]
[392669647,1761805833718,-300.0,0.00028026,2]
[392669648,1761805833729,-420.0,0.00028026,2]
[392669649,1761805833739,-420.0,0.00028027,2]
[392669650,1761805833750,-1680.0,0.00028028,2]
[392669651,1761805833761,-1680.0,0.00028149,2]
[392669652,1761805833771,-500.0,0.00028219,4]
[392669653,1761805833781,-169.535141,0.00028219,2]
[392669654,1761805833791,-423.82009242,0.00028493,4]
[392669655,1761805833801,-2544.6209484,0.00029113,2]
[392669656,1761805833812,-151.0,0.00029198,2]
[392669657,1761805833822,-151.0,0.00029198,2]
[392669658,1761805833833,-151.0,0.00029198,2]
[392669659,1761805833844,-151.0,0.00029198,2]
[392669660,1761805833854,-151.0,0.00029198,2]
[392669661,1761805833865,-151.0,0.00029198,2]
[392669662,1761805833876,-151.0,0.00029198,2]
[392669663,1761805833888,-151.0,0.00029198,2]
[392669664,1761805833899,-151.0,0.00029198,2]
[392669665,1761805833911,-151.0,0.00029198,2]
[392669666,1761805833921,-151.0,0.00029198,2]
[392669667,1761805833933,-151.0,0.00029198,2]
[392669668,1761805833943,-151.0,0.00029198,2]
[392669669,1761805833955,-151.0,0.00029198,2]
[392669670,1761805833969,-151.0,0.00029198,2]
[392669671,1761805833980,-151.16962825,0.00029198,2]
[392669672,1761805833991,-151.0,0.00029198,2]
[392669673,1761805834003,-151.0,0.00029198,2]
[392669674,1761805834016,-151.0,0.00029198,2]
[392669675,1761805834029,-151.0,0.00029198,2]
[392669676,1761805834043,-151.0,0.00029198,2]
[392669677,1761805834054,-631.51,0.00029212,2]
[392669678,1761805834064,-500.0,0.00029213,4]
[392669679,1761805834074,-601.37642633,0.00029213,4]
[392669680,1761805834085,-500.0,0.00029213,4]
[392669681,1761805834096,-500.0,0.00029213,4]
[392669682,1761805834106,-483.67701218,0.00029213,4]
[392669683,1761805834116,-500.0,0.00029213,4]
[392669684,1761805834126,-500.0,0.00029213,4]
[392669685,1761805834137,-500.0,0.00029213,4]
[392669686,1761805834149,-347.807,0.00029213,22]
[392669687,1761805834161,-467.55349885,0.00029213,4]
[392669688,1761805834173,-500.0,0.00029213,4]
[392669689,1761805834185,-400.93634322,0.00029213,4]
[392669690,1761805834195,-223.39,0.00029213,4]
[392669691,1761805834205,-221.47621276,0.00029213,4]
[392669692,1761805834217,-299.82,0.00029213,4]
[392669693,1761805834228,-500.0,0.00029213,4]
[392669694,1761805834238,-500.0,0.00029213,4]
[392669695,1761805834249,-500.0,0.00029213,4]
[392669696,1761805834259,-500.0,0.00029213,4]
[392669697,1761805834269,-500.0,0.00029213,4]
[392669698,1761805834279,-451.0,0.00029213,4]
[392669699,1761805834290,-500.0,0.00029213,4]
[392669700,1761805834300,-500.0,0.00029213,4]
[392669701,1761805834311,-500.0,0.00029213,4]
[392669702,1761805834321,-500.0,0.00029213,4]
[392669703,1761805834332,-500.0,0.00029213,4]
[392669704,1761805834342,-500.0,0.00029213,4]
[392669705,1761805834353,-500.0,0.00029213,4]
[392669706,1761805834363,-341.5364272,0.00029213,4]
[392669707,1761805834375,-500.0,0.00029213,4]
[392669708,1761805834386,-1045.89,0.00029213,4]
[392669709,1761805834396,-166.65,0.00029213,4]
[392669710,1761805834406,-500.0,0.00029214,4]
[392669711,1761805834416,-305.47888275,0.00029214,4]
[392669712,1761805834426,-500.0,0.00029214,4]
[392669713,1761805834437,-350.21605604,0.00029214,4]
[392669714,1761805834447,-500.0,0.00029216,4]
[392669715,1761805834457,-500.0,0.00029216,4]
[392669716,1761805834468,-500.0,0.00029216,4]
[392669717,1761805834478,-631.51,0.00029259,2]
[392669718,1761805834487,-500.96084373,0.00029438,5]
[392669719,1761805834498,-431.54497729,0.00029484,2]
[392669720,1761805834508,-500.0,0.00029487,4]
[392669721,1761805834518,-500.0,0.00029487,4]
[392669722,1761805834528,-1045.89,0.00029487,4]
[392669723,1761805834538,-500.0,0.00029761,4]
[392669724,1761805834548,-1045.89,0.00029761,4]
[392669725,1761805834557,-403.80339554,0.00029812,2]
[392669726,1761805834568,-3357.39038285,0.00029861,2]
[392669727,1761805834578,-502.23,0.00029871,4]
[392669728,1761805834588,-500.0,0.00029872,4]
[392669729,1761805834597,-500.0,0.00029872,4]
[392669730,1761805834607,-500.0,0.00029872,4]
[392669731,1761805834617,-500.0,0.00029872,4]
[392669732,1761805834626,-500.0,0.00029872,4]
[392669733,1761805834635,-500.0,0.00029872,4]
[392669734,1761805834645,-500.0,0.00029872,4]
[392669735,1761805834655,-500.0,0.00029872,4]
[392669736,1761805834664,-500.0,0.00029872,4]
[392669737,1761805834674,-500.0,0.00029872,4]
[392669738,1761805834685,-500.0,0.00029872,4]
[392669739,1761805834694,-500.0,0.00029872,4]
[392669740,1761805834704,-500.0,0.00029872,4]
[392669741,1761805834714,-500.0,0.00029872,4]
[392669742,1761805834724,-491.79461688,0.00029872,4]
[392669743,1761805834735,-474.25887924,0.00029872,4]
[392669744,1761805834745,-500.0,0.00029872,4]
[392669745,1761805834755,-500.0,0.00029872,4]
[392669746,1761805834765,-500.0,0.00029872,4]
[392669747,1761805834775,-500.0,0.00029872,4]
[392669748,1761805834784,-500.0,0.00029872,4]
[392669749,1761805834797,-185.74221404,0.00029872,4]
[392669750,1761805834807,-500.0,0.00029872,4]
[392669751,1761805834817,-500.0,0.00029872,4]
[392669752,1761805834827,-500.0,0.00029872,4]
[392669753,1761805834836,-500.0,0.00029872,4]
[392669754,1761805834846,-500.0,0.00029872,4]
[392669755,1761805834856,-491.79461688,0.00029872,4]
[392669756,1761805834866,-331.14875729,0.00029872,4]
[392669757,1761805834876,-500.25733323,0.00029872,4]
[392669758,1761805834887,-500.0,0.00029872,4]
[392669759,1761805834897,-441.24178965,0.00029872,4]
[392669760,1761805834912,-221.55237732,0.00029872,4]
[392669761,1761805834922,-500.0,0.00029872,2]
[392669762,1761805834931,-500.0,0.00029872,4]
[392669763,1761805834941,-500.0,0.00029873,5]
[392669764,1761805834951,-501.83948246,0.00029873,5]
[392669765,1761805834965,-311.08557402,0.00029873,5]
[392669766,1761805834975,-500.28400259,0.00029873,5]
[392669767,1761805834987,-631.2656561,0.00029873,5]
[392669768,1761805834996,-500.80007361,0.00029873,5]
[392669769,1761805835007,-500.88051498,0.00029873,5]
[392669770,1761805835016,-501.80001799,0.00029873,5]
[392669771,1761805835026,-501.00899291,0.00029873,5]
[392669772,1761805835037,-2262.6,0.00029875,2]
[392669773,1761805835047,-2262.6,0.00029875,2]
[392669774,1761805835057,-2262.6,0.00029875,2]
[392669775,1761805835067,-2262.6,0.00029875,2]
[392669776,1761805835077,-2262.6,0.00029875,2]
[392669777,1761805835086,-602.95,0.00029888,3]
[392669778,1761805835096,-631.51,0.00029894,2]
[392669779,1761805835106,-500.0,0.00029896,4]
[392669780,1761805835116,-500.0,0.00029896,4]
[392669781,1761805835125,-500.0,0.00029897,4]
[392669782,1761805835135,-500.0,0.00029897,4]
[392669783,1761805835144,-2262.6,0.00029897,2]
[392669784,1761805835154,-2362.69783431,0.00029913,2]
[392669785,1761805835164,-3357.39038285,0.00029937,2]
[392669786,1761805835173,-200.97,0.00029947,3]
[392669787,1761805835183,-803.88,0.00029957,3]
[392669788,1761805835193,-401.94,0.00029957,3]
[392669789,1761805835203,-631.51,0.00029966,2]
[392669790,1761805835213,-2262.6,0.00029967,2]
[392669791,1761805835224,-500.0,0.00029978,4]
[392669792,1761805835234,-500.0,0.00029978,4]
[392669793,1761805835243,-352.48446269,0.0003,2]
[392669794,1761805835253,-3611.80750478,0.0003001,5]
[392669795,1761805835263,-500.0,0.00030035,4]
[392669796,1761805835273,-1045.89,0.00030035,4]
[392669797,1761805835283,-500.0,0.00030146,4]
[392669798,1761805835294,-500.0,0.00030146,4]
[392669799,1761805835304,-500.0,0.00030309,4]
[392669800,1761805835314,-1045.89,0.00030309,4]
[392669801,1761805835324,-500.0,0.00030311,4]
[392669802,1761805835334,-500.0,0.00030311,4]
[392669803,1761805835345,-587.0,0.00030334,2]
[392669804,1761805835354,-2351.0,0.00030336,2]
[392669805,1761805835363,-500.0,0.0003042,4]
[392669806,1761805835373,-631.51,0.00030445,2]
[392669807,1761805835383,-500.0,0.00030583,4]
[392669808,1761805835392,-823.5234998,0.00030583,4]
[392669813,1761805838027,-500.0,0.00026661,2]
[392669814,1761805838039,-500.0,0.00026661,2]
[392669815,1761805838050,-500.0,0.00026661,2]
[392669816,1761805838059,-398.0585068,0.00026661,2]
[392669817,1761805838068,-500.0,0.00026661,2]
[392669818,1761805838077,-500.0,0.00026661,2]
[392669819,1761805838086,-500.0,0.00026661,2]
[392669820,1761805838095,-500.0,0.00026661,2]
[392669821,1761805838104,-500.0,0.00026661,2]
[392669822,1761805838114,-222.3665002,0.00030583,4]
[392669823,1761805838124,-2351.0,0.00030603,2]
[392669824,1761805838133,-2544.62094837,0.00030671,2]
[392669825,1761805838142,-500.0,0.00030694,4]
[392669826,1761805838152,-500.0,0.00030857,4]
[392669827,1761805838161,-1045.89,0.00030857,4]
[392669828,1761805838171,-500.0,0.00030968,4]
[392669829,1761805838180,-194.30010957,0.00031,120]
[392669830,1761805838189,-171.60772483,0.00031,120]
[392669831,1761805838198,-500.0,0.00031131,4]
[392669832,1761805838208,-1045.89,0.00031131,4]
[392669833,1761805838217,-500.0,0.00031242,4]
[392669834,1761805838227,-276.34010577,0.00031247,2]
[392669835,1761805838239,-315.81726374,0.00031247,2]
[392669836,1761805838248,-493.46447459,0.00031247,2]
[392669837,1761805838258,-401.94,0.00031317,3]
[392669838,1761805838267,-1607.76,0.00031327,3]
[392669839,1761805838276,-803.88,0.00031327,3]
[392669840,1761805838285,-242.16373765,0.00031329,2]
[392669841,1761805838295,-435.89472777,0.00031329,2]
[392669842,1761805838304,-774.92396048,0.00031329,2]
[392669843,1761805838314,-1210.81868825,0.00031329,2]
[392669844,1761805838323,-386.13141922,0.00031329,2]
[392669845,1761805838333,-695.0365546,0.00031329,2]
[392669846,1761805838342,-1235.62054151,0.00031329,2]
[392669847,1761805838351,-1930.65709611,0.00031329,2]
[392669848,1761805838360,-482.53722526,0.00031329,2]
[392669849,1761805838369,-857.84395601,0.00031329,2]
[392669850,1761805838379,-1340.38118127,0.00031329,2]
[392669851,1761805838389,-1121.01933815,0.00031335,2]
[392669852,1761805838403,-867.27442473,0.00031335,2]
[392669853,1761805838413,-151.0,0.0003134,2]
[392669854,1761805838423,-151.0,0.00031395,2]
[392669855,1761805838432,-500.0,0.00031405,4]
[392669856,1761805838442,-1045.89,0.00031405,4]
[392669857,1761805838451,-151.0,0.00031414,31]
[392669858,1761805838461,-151.0,0.00031414,31]
[392669859,1761805838470,-151.0,0.00031414,31]
[392669860,1761805838480,-151.0,0.00031414,31]
[392669861,1761805838491,-152.022226,0.00031414,30]
[392669862,1761805838500,-151.0,0.0003145,2]
[392669863,1761805838510,-488.66122429,0.00031484,2]
[392669864,1761805838520,-160.831916,0.000315,31]
[392669865,1761805838529,-151.0,0.000315,31]
[392669866,1761805838539,-2370.77397389,0.00031501,2]
[392669867,1761805838550,-300.0,0.00031501,2]
[392669868,1761805838563,-686.61640896,0.00031501,2]
[392669869,1761805838572,-151.0,0.00031504,2]
[392669870,1761805838582,-2262.6,0.00031511,2]
[392669871,1761805838592,-377.87604528,0.00031516,4]
[392669872,1761805838602,-151.0,0.00031559,2]
[392669873,1761805838612,-245.0,0.00031614,2]
[392669874,1761805838621,-1988.29376288,0.00031673,2]
[392669875,1761805838631,-500.0,0.00031679,4]
[392669876,1761805838641,-200.75214356,0.00031679,4]
[392669881,1761805840292,-845.13785644,0.00031679,4]
[392669882,1761805840302,-631.51,0.00031785,2]
[392669883,1761805840311,-1988.29376289,0.00031833,2]
[392669884,1761805840320,-194.30010957,0.000319,120]
[392669885,1761805840330,-171.60772483,0.000319,120]
[392669886,1761805840339,-1012.24138595,0.00031943,2]
[392669887,1761805840348,-500.0,0.00031953,4]
[392669888,1761805840358,-1045.89,0.00031953,4]
[392669889,1761805840367,-66745.37580326,0.0003199,2]
[392669890,1761805840377,-16932.37371823,0.00031998,2]
[392669891,1761805840386,-12166.66932755,0.00032175,7]
[392669905,1761805843118,-453.0,0.00032165,10]
[392669906,1761805843146,-121.0,0.00032165,10]
[392669907,1761805843155,-331.51680023,0.00032175,7]
[392669914,1761806594243,-286.83921847,0.00025376,2]
[392669915,1761806594310,-9195.86000506,0.00025535,2]
[392669916,1761806606096,-2858.92871584,0.00025535,2]
[392669919,1761806834139,-177.08671442,0.00025548,2]
[392669949,1761807032369,-113.10503351,0.00025548,2]
[392669951,1761807032379,-403.80339554,0.00025889,2]
[392669953,1761807032390,-999.0,0.00026309,2]
[392669955,1761807032400,-200.0,0.00026359,15]
[392669957,1761807032409,-1200.0,0.00026642,2]
[392669959,1761807032420,-300.0,0.00026643,2]
[392669961,1761807032430,-300.0,0.00026643,2]
[392669963,1761807032439,-300.0,0.00026643,2]